fUST/lending_fUST_20241125
["ID","MTS","AMOUNT","RATE_DAILY","PERIOD"]
[343282309,1732539066374,-500.0,0.00021905,2]
[343282310,1732539066387,-500.0,0.00022179,2]
[343282311,1732539066397,-347.69951976,0.00022453,2]
[343282312,1732539066406,-153.0,0.00029318,30]
[343282313,1732539066417,-10786.50393419,0.00029357,10]
[343282314,1732539066429,-998922.58873731,0.00029357,10]
[343282315,1732539066441,-40778.45641647,0.00029357,10]
[343282316,1732539066451,-9402.54358253,0.00029357,10]
[343282320,1732539284892,-189.77707985,0.00020159,2]
[343282321,1732539284916,-500.0,0.00020259,2]
[343282322,1732539284937,-500.0,0.00020259,2]
[343282323,1732539284958,-500.0,0.00020259,2]
[343282324,1732539284979,-500.0,0.00020259,2]
[343282325,1732539285000,-538.85,0.00020259,2]
[343282326,1732539285021,-500.0,0.00020259,2]
[343282327,1732539285043,-500.0,0.00020259,2]
[343282328,1732539285062,-575.52,0.00020259,2]
[343282329,1732539285082,-500.0,0.00020259,2]
[343282330,1732539285104,-610.43652765,0.00020259,2]
[343282331,1732539285125,-635.09,0.00020259,2]
[343282332,1732539285145,-500.0,0.00020259,2]
[343282333,1732539285165,-500.0,0.00020259,2]
[343282334,1732539285185,-500.0,0.00020259,2]
[343282335,1732539285206,-500.0,0.00020259,2]
[343282336,1732539285227,-618.96,0.00020259,2]
[343282337,1732539285247,-268.94503934,0.00020259,2]
[343282338,1732539285268,-500.0,0.00020259,2]
[343282339,1732539285289,-577.21,0.00020259,2]
[343282340,1732539285310,-500.0,0.00020259,2]
[343282341,1732539285331,-500.0,0.00020259,2]
[343282342,1732539285354,-576.84,0.00020259,2]
[343282343,1732539285375,-500.0,0.00020259,2]
[343282344,1732539285397,-560.81,0.0002026,2]
[343282345,1732539285419,-500.0,0.0002026,2]
[343282346,1732539285440,-500.0,0.0002026,2]
[343282347,1732539285460,-500.0,0.00020261,2]
[343282348,1732539285551,-638.51,0.00020261,2]
[343282349,1732539285571,-500.0,0.00020261,2]
[343282350,1732539285597,-556.35,0.00020533,2]
[343282351,1732539285619,-500.0,0.00020533,2]
[343282352,1732539285640,-174.66,0.00020533,2]
[343282353,1732539285662,-382.91,0.00020533,2]
[343282354,1732539285684,-238.33,0.00020533,2]
[343282355,1732539285705,-389.01,0.00020533,2]
[343282356,1732539285727,-500.0,0.00020533,2]
[343282357,1732539285748,-500.0,0.00020533,2]
[343282358,1732539285770,-500.0,0.00020533,2]
[343282359,1732539285793,-500.0,0.00020533,2]
[343282360,1732539285817,-560.44,0.00020533,2]
[343282361,1732539285841,-500.0,0.00020533,2]
[343282362,1732539285865,-385.71,0.00020533,2]
[343282363,1732539285888,-560.81,0.00020534,2]
[343282364,1732539285909,-500.0,0.00020534,2]
[343282365,1732539285930,-500.0,0.00020534,2]
[343282366,1732539285951,-500.0,0.00020535,2]
[343282367,1732539285973,-217.38,0.00020807,2]
[343282368,1732539285994,-500.0,0.00020807,2]
[343282369,1732539286014,-529.76,0.00020807,2]
[343282370,1732539286038,-500.0,0.00020807,2]
[343282371,1732539286059,-500.0,0.00020807,2]
[343282372,1732539286081,-516.41,0.00020807,2]
[343282373,1732539286104,-560.81,0.00020808,2]
[343282374,1732539286124,-500.0,0.00020808,2]
[343282375,1732539286144,-500.0,0.00020808,2]
[343282376,1732539286164,-325.38507829,0.00020809,2]
[343282377,1732539286185,-500.0,0.00021081,2]
[343282378,1732539286207,-500.0,0.00021081,2]
[343282379,1732539286228,-619.31,0.00021081,2]
[343282380,1732539286250,-560.81,0.00021082,2]
[343282381,1732539286271,-500.0,0.00021082,2]
[343282382,1732539286291,-500.0,0.00021082,2]
[343282383,1732539286311,-189.77707985,0.00021119,2]
[343282384,1732539286332,-500.0,0.00021355,2]
[343282385,1732539286355,-500.0,0.00021355,2]
[343282386,1732539286378,-560.81,0.00021356,2]
[343282387,1732539286403,-500.0,0.00021356,2]
[343282388,1732539286424,-500.0,0.00021356,2]
[343282389,1732539286445,-500.0,0.00021629,2]
[343282390,1732539286466,-500.0,0.00021629,2]
[343282391,1732539286488,-560.81,0.0002163,2]
[343282392,1732539286510,-500.0,0.0002163,2]
[343282393,1732539286530,-500.0,0.0002163,2]
[343282394,1732539286551,-505.66,0.00021903,2]
[343282395,1732539286575,-500.0,0.00021903,2]
[343282396,1732539286599,-560.81,0.00021904,2]
[343282397,1732539286620,-500.0,0.00021904,2]
[343282398,1732539286641,-500.0,0.00021904,2]
[343282399,1732539286679,500.0,0.00020261,2]
[343282400,1732539286884,500.0,0.00020535,2]
[343282401,1732539287151,282.52,0.00020809,2]
[343282402,1732539289111,500.0,0.00020261,2]
[343282403,1732539289382,500.0,0.00020535,2]
[343282404,1732539289645,518.51996958,0.00020809,2]
[343282405,1732539296676,500.0,0.00020261,2]
[343282406,1732539297002,500.0,0.00020535,2]
[343282407,1732539297270,500.0,0.00020809,2]
[343282408,1732539297532,468.36529264,0.00021083,2]
[343282409,1732539313643,516.19,0.00020259,2]
[343282410,1732539314637,500.0,0.00020259,2]
[343282411,1732539314945,387.97,0.00020533,2]
[343282412,1732539314976,500.0,0.00020259,2]
[343282413,1732539315256,500.0,0.00020533,2]
[343282414,1732539315536,500.0,0.00020807,2]
[343282415,1732539315852,500.0,0.00021081,2]
[343282416,1732539316231,500.0,0.00021355,2]
[343282417,1732539316505,500.0,0.00021629,2]
[343282418,1732539316764,500.0,0.00021903,2]
[343282419,1732539329119,556.23,0.00020259,2]
[343282420,1732539330521,534.97,0.00020259,2]
[343282421,1732539369517,500.0,0.00020807,2]
[343282422,1732539376932,597.49,0.00020259,2]
[343282423,1732539378799,500.0,0.00020259,2]
[343282424,1732539386975,500.0,0.00020807,2]
[343282425,1732539387631,500.0,0.00021081,2]
[343282426,1732539387923,500.0,0.00021355,2]
[343282427,1732539387955,500.0,0.00020259,2]
[343282428,1732539388197,500.0,0.00021629,2]
[343282429,1732539388226,450.08,0.00020533,2]
[343282430,1732539388505,500.0,0.00021903,2]
[343282431,1732539396960,500.0,0.00020259,2]
[343282432,1732539397250,382.37,0.00020533,2]
[343282434,1732539402819,179.58051185,0.00020159,2]
[343282435,1732539409652,500.0,0.00020807,2]
[343282436,1732539410047,500.0,0.00021081,2]
[343282437,1732539410306,500.0,0.00020259,2]
[343282438,1732539410341,500.0,0.00021355,2]
[343282439,1732539410678,500.0,0.00021629,2]
[343282440,1732539410975,500.0,0.00021903,2]
[343282441,1732539420478,500.0,0.00020807,2]
[343282442,1732539420837,627.26,0.00021081,2]
[343282443,1732539421501,500.0,0.00020259,2]
[343282444,1732539421770,372.19,0.00020533,2]
[343282445,1732539436895,500.0,0.00020259,2]
[343282446,1732539454642,500.0,0.00020259,2]
[343282447,1732539454964,350.07,0.00020533,2]
[343282448,1732539457171,500.0,0.00020259,2]
[343282449,1732539459258,500.0,0.00020259,2]
[343282450,1732539459504,500.0,0.00020533,2]
[343282451,1732539459788,500.0,0.00020807,2]
[343282452,1732539460038,184.05,0.00021081,2]
[343282453,1732539461314,165.094199,0.00013973,2]
[343282454,1732539462989,1128.1,0.00020807,2]
[343282455,1732539463263,1128.1,0.00021081,2]
[343282456,1732539463525,1128.1,0.00021355,2]
[343282457,1732539463792,1128.1,0.00021629,2]
[343282458,1732539464079,1128.1,0.00021903,2]
[343282459,1732539464105,546.44,0.00020259,2]
[343282460,1732539466566,500.0,0.0002026,2]
[343282461,1732539466837,500.0,0.00020534,2]
[343282462,1732539467149,500.0,0.00020808,2]
[343282463,1732539467403,500.0,0.00021082,2]
[343282464,1732539467734,500.0,0.00021356,2]
[343282465,1732539468008,500.0,0.0002163,2]
[343282466,1732539468277,500.0,0.00021904,2]
[343282467,1732539472146,500.0,0.00020259,2]
[343282468,1732539472440,216.22,0.00020533,2]
[343282469,1732539482077,626.8,0.00020807,2]
[343282471,1732539487365,500.0,0.00020807,2]
[343282472,1732539509722,500.0,0.0002026,2]
[343282473,1732539509996,500.0,0.00020534,2]
[343282474,1732539510272,262.56,0.00020808,2]
[343282475,1732539533856,500.0,0.0002026,2]
[343282476,1732539534182,500.0,0.00020534,2]
[343282477,1732539534627,500.0,0.00020808,2]
[343282478,1732539534898,500.0,0.00021082,2]
[343282479,1732539544624,151.78912953,0.0002026,2]
[343282480,1732539553989,500.0,0.0002026,2]
[343282481,1732539554217,500.0,0.00020534,2]
[343282482,1732539554499,528.70574694,0.00020808,2]
[343282483,1732539556582,500.0,0.0002026,2]
[343282484,1732539556843,500.0,0.00020534,2]
[343282485,1732539557088,523.9758747,0.00020808,2]
[343282487,1732539603742,500.0,0.0002026,2]
[343282488,1732539604036,500.0,0.00020534,2]
[343282489,1732539604381,286.70049076,0.00020808,2]
[343282491,1732539606539,523.94361315,0.0002026,2]
[343282492,1732539617234,500.0,0.0002026,2]
[343282493,1732539617840,333.58,0.00020534,2]
[343282494,1732539644633,500.0,0.0002026,2]
[343282495,1732539644911,230.5169804,0.00020534,2]
[343282496,1732539647147,500.0,0.0002026,2]
[343282497,1732539647420,574.59320516,0.00020534,2]
[343282498,1732539653142,500.0,0.0002026,2]
[343282499,1732539653451,500.0,0.00020534,2]
[343282500,1732539653721,500.0,0.00020808,2]
[343282501,1732539654004,500.0,0.00021082,2]
[343282502,1732539654759,500.0,0.00021356,2]
[343282503,1732539655054,500.0,0.0002163,2]
[343282504,1732539655365,500.0,0.00021904,2]
[343282506,1732539663511,500.0,0.0002026,2]
[343282507,1732539663797,500.0,0.00020534,2]
[343282509,1732539664058,500.0,0.00020808,2]
[343282510,1732539664357,500.0,0.00021082,2]
[343282511,1732539664675,500.0,0.00021356,2]
[343282512,1732539664963,500.0,0.0002163,2]
[343282513,1732539665237,309.96,0.00021904,2]
[343282514,1732539668799,593.45,0.0002026,2]
[343282515,1732539674131,641.87,0.0002026,2]
[343282516,1732539674547,641.87,0.00020534,2]
[343282517,1732539674847,641.87,0.00020808,2]
[343282518,1732539675133,641.87,0.00021082,2]
[343282519,1732539675461,641.87,0.00021356,2]
[343282520,1732539675736,641.87,0.0002163,2]
[343282521,1732539676039,641.87,0.00021904,2]
[343282522,1732539692143,500.0,0.0002026,2]
[343282523,1732539692453,500.0,0.00020534,2]
[343282524,1732539692741,500.0,0.00020808,2]
[343282525,1732539693050,500.0,0.00021082,2]
[343282526,1732539693328,500.0,0.00021356,2]
[343282527,1732539693584,500.0,0.0002163,2]
[343282528,1732539693835,500.0,0.00021904,2]
[343282529,1732539714554,500.0,0.0002026,2]
[343282530,1732539715175,500.0,0.00020534,2]
[343282531,1732539715454,500.0,0.00020808,2]
[343282532,1732539715706,500.0,0.00021082,2]
[343282533,1732539715991,500.0,0.00021356,2]
[343282534,1732539716240,494.72,0.0002163,2]
[343282535,1732539733094,500.0,0.0002026,2]
[343282536,1732539733737,500.0,0.00020534,2]
[343282537,1732539734254,500.0,0.00020808,2]
[343282538,1732539734563,500.0,0.00021082,2]
[343282541,1732539820753,500.0,0.0002026,2]
[343282542,1732539821070,589.2985322,0.00020534,2]
[343282543,1732539843544,235.7522136,0.00022,2]
[343282549,1732539994212,-235.7522136,0.00022178,2]
[343282645,1732540231963,-500.0,0.00022178,2]
[343282646,1732540231973,-500.0,0.00022178,2]
[343282647,1732540231982,-641.87,0.00022178,2]
[343282648,1732540231992,-500.0,0.00022178,2]
[343282649,1732540232002,-171.0,0.00022451,2]
[343282650,1732540232011,-500.0,0.00022452,2]
[343282651,1732540232020,-399.33,0.00022452,2]
[343282652,1732540232032,-100.67,0.00022452,2]
[343282653,1732540232041,-641.87,0.00022452,2]
[343282654,1732540232050,-500.0,0.00022452,2]
[343282655,1732540232061,-189.77707985,0.00022626,2]
[343282656,1732540232074,-500.0,0.00022726,2]
[343282657,1732540232083,-500.0,0.00022726,2]
[343282658,1732540232092,-641.87,0.00022726,2]
[343282659,1732540232100,-500.0,0.00022726,2]
[343282660,1732540232110,-500.0,0.00023,2]
[343282661,1732540232121,-500.0,0.00023,2]
[343282662,1732540232130,-641.87,0.00023,2]
[343282663,1732540232140,-500.0,0.00023,2]
[343282664,1732540232150,-358.82,0.00023152,2]
[343282665,1732540232160,-500.0,0.00023152,2]
[343282666,1732540232170,-500.0,0.00023152,2]
[343282667,1732540232180,-500.0,0.00023152,2]
[343282668,1732540232189,-500.0,0.00023152,2]
[343282669,1732540232198,-500.0,0.00023152,2]
[343282670,1732540232208,-500.0,0.00023152,2]
[343282671,1732540232217,-500.0,0.00023152,2]
[343282672,1732540232226,-1339.92,0.00023152,2]
[343282673,1732540232235,-24900.0,0.00023153,2]
[343282674,1732540232244,-500.0,0.00023274,2]
[343282675,1732540232254,-500.0,0.00023274,2]
[343282676,1732540232263,-641.87,0.00023274,2]
[343282677,1732540232273,-500.0,0.00023274,2]
[343282678,1732540232282,-500.0,0.00023426,2]
[343282679,1732540232291,-495.12511618,0.00023426,2]
[343282680,1732540232302,-257.01,0.00023426,2]
[343282681,1732540232312,-563.11,0.00023426,2]
[343282682,1732540232322,-500.0,0.00023426,2]
[343282683,1732540232331,-500.0,0.00023426,2]
[343282684,1732540232341,-629.2,0.00023426,2]
[343282685,1732540232351,-1339.92,0.00023426,2]
[343282686,1732540232362,-500.0,0.00023546,2]
[343282687,1732540232372,-500.0,0.00023546,2]
[343282688,1732540232381,-200.0,0.00023546,2]
[343282689,1732540232391,-500.0,0.00023546,2]
[343282690,1732540232401,-500.0,0.00023546,2]
[343282691,1732540232410,-500.0,0.00023546,2]
[343282692,1732540232420,-590.73,0.00023546,2]
[343282693,1732540232433,-500.0,0.00023546,2]
[343282694,1732540232442,-605.75,0.00023546,2]
[343282695,1732540232452,-500.0,0.00023546,2]
[343282696,1732540232463,-500.0,0.00023546,2]
[343282697,1732540232473,-500.0,0.00023546,2]
[343282698,1732540232482,-500.0,0.00023546,2]
[343282699,1732540232491,-171.8595185,0.00023546,2]
[343282700,1732540232501,-500.0,0.00023546,2]
[343282701,1732540232510,-500.0,0.00023546,2]
[343282702,1732540232520,-427.85999546,0.00023546,2]
[343282703,1732540232529,-500.0,0.00023546,2]
[343282704,1732540232539,-529.62,0.00023546,2]
[343282705,1732540232548,-500.0,0.00023546,2]
[343282706,1732540232557,-500.0,0.00023546,2]
[343282707,1732540232567,-500.0,0.00023546,2]
[343282708,1732540232576,-500.0,0.00023546,2]
[343282709,1732540232586,-500.0,0.00023546,2]
[343282710,1732540232595,-610.81,0.00023546,2]
[343282711,1732540232605,-500.0,0.00023546,2]
[343282712,1732540232615,-544.11937671,0.00023546,2]
[343282713,1732540232624,-525.83,0.00023546,2]
[343282714,1732540232633,-500.0,0.00023546,2]
[343282715,1732540232643,-592.42226221,0.00023546,2]
[343282716,1732540232652,-500.0,0.00023546,2]
[343282717,1732540232662,-500.0,0.00023548,2]
[343282718,1732540232671,-500.0,0.00023548,2]
[343282719,1732540232686,-641.87,0.00023548,2]
[343282720,1732540232696,-500.0,0.00023548,2]
[343282721,1732540232705,-500.0,0.000237,2]
[343282722,1732540232714,-500.0,0.000237,2]
[343282723,1732540232724,-500.0,0.000237,2]
[343282724,1732540232734,-1339.92,0.000237,2]
[343282725,1732540232743,-206.69,0.0002382,2]
[343282726,1732540232753,-500.0,0.0002382,2]
[343282727,1732540232768,-500.0,0.0002382,2]
[343282728,1732540232783,-203.18,0.0002382,2]
[343282729,1732540232793,-500.0,0.0002382,2]
[343282730,1732540232802,-500.0,0.0002382,2]
[343282731,1732540232811,-500.0,0.0002382,2]
[343282732,1732540232820,-500.0,0.0002382,2]
[343282733,1732540232829,-500.0,0.0002382,2]
[343282734,1732540232838,-500.0,0.0002382,2]
[343282735,1732540232847,-529.62,0.0002382,2]
[343282736,1732540232865,-500.0,0.0002382,2]
[343282737,1732540232875,-338.27002018,0.0002382,2]
[343282738,1732540232884,-500.0,0.0002382,2]
[343282739,1732540232893,-500.0,0.0002382,2]
[343282740,1732540232903,-500.0,0.0002382,2]
[343282741,1732540232913,-500.0,0.0002382,2]
[343282742,1732540232927,-500.0,0.00023822,2]
[343282743,1732540232937,-251.76093678,0.00023822,2]
[343282744,1732540232947,-641.87,0.00023822,2]
[343282745,1732540232956,-500.0,0.00023822,2]
[343282746,1732540232966,-500.0,0.00023974,2]
[343282747,1732540232975,-500.0,0.00023974,2]
[343282748,1732540232985,-500.0,0.00023974,2]
[343282749,1732540232995,-1339.92,0.00023974,2]
[343282750,1732540233004,-264.94,0.00024094,2]
[343282751,1732540233014,-500.0,0.00024094,2]
[343282752,1732540233024,-500.0,0.00024094,2]
[343282753,1732540233033,-500.0,0.00024094,2]
[343282754,1732540233043,-500.0,0.00024094,2]
[343282755,1732540233052,-500.0,0.00024094,2]
[343282756,1732540233063,-500.0,0.00024094,2]
[343282757,1732540233076,-529.62,0.00024094,2]
[343282758,1732540233086,-500.0,0.00024094,2]
[343282759,1732540233096,-500.0,0.00024094,2]
[343282760,1732540233107,-500.0,0.00024094,2]
[343282761,1732540233116,-619.46748393,0.00024094,2]
[343282762,1732540233126,-500.0,0.00024096,2]
[343282763,1732540233136,-641.87,0.00024096,2]
[343282764,1732540233148,-500.0,0.00024096,2]
[343282765,1732540233161,-500.0,0.00024248,2]
[343282766,1732540233175,-500.0,0.00024248,2]
[343282767,1732540233185,-479.67,0.00024248,2]
[343282768,1732540233195,-1339.92,0.00024248,2]
[343282769,1732540233204,-500.0,0.00024368,2]
[343282770,1732540233214,-500.0,0.00024368,2]
[343282771,1732540233224,-500.0,0.00024368,2]
[343282772,1732540233233,-500.0,0.00024368,2]
[343282773,1732540233243,-529.62,0.00024368,2]
[343282774,1732540233252,-352.37,0.00024368,2]
[343282775,1732540233262,-500.0,0.00024368,2]
[343282776,1732540233272,-500.0,0.0002437,2]
[343282777,1732540233294,-641.87,0.0002437,2]
[343282778,1732540233305,-500.0,0.0002437,2]
[343282779,1732540233315,-500.0,0.00024522,2]
[343282780,1732540233326,-500.0,0.00024522,2]
[343282781,1732540233336,-1339.92,0.00024522,2]
[343282782,1732540233346,-500.0,0.00024642,2]
[343282783,1732540233357,-500.0,0.00024642,2]
[343282784,1732540233367,-500.0,0.00024642,2]
[343282785,1732540233377,-500.0,0.00024642,2]
[343282786,1732540233387,-529.62,0.00024642,2]
[343282787,1732540233397,-500.0,0.00024642,2]
[343282788,1732540233407,-500.0,0.00024644,2]
[343282789,1732540233417,-641.87,0.00024644,2]
[343282790,1732540233430,-551.77,0.00024644,2]
[343282791,1732540233440,-180.730455,0.00024665,2]
[343282792,1732540233450,-500.0,0.00024796,2]
[343282793,1732540233460,-500.0,0.00024796,2]
[343282794,1732540233469,-1339.92,0.00024796,2]
[343282795,1732540233479,-500.0,0.00024916,2]
[343282796,1732540233488,-500.0,0.00024916,2]
[343282797,1732540233498,-500.0,0.00024916,2]
[343282798,1732540233509,-500.0,0.00024916,2]
[343282799,1732540233519,-529.62,0.00024916,2]
[343282800,1732540233529,-500.0,0.00024916,2]
[343282801,1732540233539,-500.0,0.00024918,2]
[343282802,1732540233549,-641.87,0.00024918,2]
[343282803,1732540233560,-5023.44935089,0.00025,2]
[343282804,1732540233572,-500.0,0.0002507,2]
[343282805,1732540233587,-500.0,0.0002507,2]
[343282806,1732540233597,-1339.92,0.0002507,2]
[343282807,1732540233608,-500.0,0.0002519,2]
[343282808,1732540233618,-591.1221385,0.0002519,2]
[343282809,1732540233629,-475.54,0.0002519,2]
[343282810,1732540233640,-500.0,0.0002519,2]
[343282811,1732540233651,-529.62,0.0002519,2]
[343282812,1732540233661,-500.0,0.0002519,2]
[343282813,1732540233672,-369.4,0.00025192,2]
[343282814,1732540233693,-641.87,0.00025192,2]
[343282815,1732540233704,-151.09559079,0.00025284,2]
[343282816,1732540233715,-500.0,0.00025344,2]
[343282817,1732540233726,-500.0,0.00025344,2]
[343282818,1732540233736,-1339.92,0.00025344,2]
[343282819,1732540233747,-500.0,0.00025464,2]
[343282820,1732540233757,-500.0,0.00025464,2]
[343282821,1732540233768,-529.62,0.00025464,2]
[343282822,1732540233778,-500.0,0.00025464,2]
[343282823,1732540233789,-641.87,0.00025466,2]
[343282824,1732540233799,-500.0,0.00025618,2]
[343282825,1732540233809,-334.2,0.00025618,2]
[343282826,1732540233819,-1339.92,0.00025618,2]
[343282827,1732540233829,-417.83,0.00025738,2]
[343282828,1732540233839,-500.0,0.00025738,2]
[343282829,1732540233849,-529.62,0.00025738,2]
[343282830,1732540233859,-500.0,0.00025738,2]
[343282831,1732540233869,-641.87,0.0002574,2]
[343282832,1732540233879,-500.0,0.00025892,2]
[343282833,1732540233889,-1339.92,0.00025892,2]
[343282834,1732540233899,-294.8,0.00026012,2]
[343282835,1732540233909,-529.62,0.00026012,2]
[343282836,1732540233919,-500.0,0.00026012,2]
[343282837,1732540233938,-641.87,0.00026014,2]
[343282838,1732540233949,-500.0,0.00026166,2]
[343282839,1732540233959,-1339.92,0.00026166,2]
[343282840,1732540233969,-529.62,0.00026286,2]
[343282841,1732540233978,-500.0,0.00026286,2]
[343282842,1732540233988,-641.87,0.00026288,2]
[343282843,1732540233998,-500.0,0.0002644,2]
[343282844,1732540234011,-1339.92,0.0002644,2]
[343282845,1732540234026,-529.62,0.0002656,2]
[343282846,1732540234037,-500.0,0.0002656,2]
[343282847,1732540234047,-642.01,0.00026562,2]
[343282848,1732540234056,-500.0,0.00026714,2]
[343282849,1732540234071,-1339.92,0.00026714,2]
[343282850,1732540234082,-529.62,0.00026834,2]
[343282851,1732540234092,-500.0,0.00026834,2]
[343282852,1732540234102,-1020.268794,0.00026985,2]
[343282853,1732540234113,-500.0,0.00026988,2]
[343282854,1732540234123,-1339.92,0.00026988,2]
[343282855,1732540234134,-529.62,0.00027108,2]
[343282856,1732540234145,-483.7977864,0.00027108,2]
[343282857,1732540234156,-287.43,0.00027262,2]
[343282858,1732540234165,-1339.92,0.00027262,2]
[343282859,1732540234178,-1020.268794,0.00027322,2]
[343282860,1732540234189,-529.62,0.00027382,2]
[343282861,1732540234199,-1339.92,0.00027536,2]
[343282862,1732540234209,-529.62,0.00027656,2]
[343282863,1732540234219,-1020.268794,0.0002766,2]
[343282864,1732540234229,-1339.92,0.0002781,2]
[343282865,1732540234239,-529.62,0.0002793,2]
[343282866,1732540234249,-1020.268794,0.00027997,2]
[343282867,1732540234258,-223.65062948,0.00028,2]
[343282868,1732540234268,-9410.83072058,0.00028,2]
[343282869,1732540234277,-1339.92,0.00028084,2]
[343282870,1732540234287,-529.62,0.00028204,2]
[343282871,1732540234297,-1020.268794,0.00028334,2]
[343282872,1732540234306,-531.0,0.00028339,2]
[343282873,1732540234316,-1105.0,0.00028339,2]
[343282874,1732540234326,-2379.0,0.00028339,2]
[343282875,1732540234335,-1339.92,0.00028358,2]
[343282876,1732540234345,-153.0,0.00028359,30]
[343282877,1732540234355,-153.0,0.00028359,30]
[343282878,1732540234364,-153.0,0.00028359,30]
[343282879,1732540234374,-153.0,0.00028359,30]
[343282880,1732540234383,-153.0,0.00028411,30]
[343282881,1732540234393,-153.0,0.00028411,30]
[343282882,1732540234402,-153.0,0.00028411,30]
[343282883,1732540234412,-153.0,0.00028411,30]
[343282884,1732540234421,-529.62,0.00028478,2]
[343282885,1732540234433,-153.0,0.00028496,30]
[343282886,1732540234443,-425.4826048,0.00028496,30]
[343282887,1732540234453,-314.9968386,0.00028496,30]
[343282888,1732540234462,-212.7413024,0.00028496,30]
[343282889,1732540234471,-153.0,0.00028496,30]
[343282890,1732540234481,-212.7413024,0.00028496,30]
[343282891,1732540234490,-212.7413024,0.00028496,30]
[343282892,1732540234499,-749.79,0.000285,2]
[343282893,1732540234509,-304.7429954,0.00028548,30]
[343282894,1732540234518,-212.7413024,0.00028548,30]
[343282895,1732540234527,-310.5783096,0.00028548,30]
[343282896,1732540234537,-153.0,0.00028548,30]
[343282897,1732540234547,-451.7842529,0.00028548,30]
[343282898,1732540234556,-304.7429954,0.00028548,30]
[343282899,1732540234566,-212.7413024,0.00028548,30]
[343282900,1732540234575,-311.9373001,0.00028548,30]
[343282901,1732540234584,-153.0,0.00028548,30]
[343282902,1732540234594,-212.7413024,0.00028548,30]
[343282903,1732540234604,-212.7413024,0.00028548,30]
[343282904,1732540234613,-153.0,0.00028548,30]
[343282905,1732540234623,-1339.92,0.00028632,2]
[343282906,1732540234632,-529.62,0.00028752,2]
[343282907,1732540234642,-1339.92,0.00028906,2]
[343282908,1732540234651,-151.0,0.0002897,7]
[343282909,1732540234662,-151.0,0.0002898,2]
[343282910,1732540234671,-529.62,0.00029026,2]
[343282911,1732540234684,-1339.92,0.0002918,2]
[343282912,1732540234693,-658.69091492,0.00029183,2]
[343282913,1732540234702,-186.0,0.000292,2]
[343282914,1732540234713,-330.0,0.00029246,2]
[343282915,1732540234722,-490.07850726,0.00029256,2]
[343282916,1732540234731,-250000.0,0.00029257,2]
[343282917,1732540234740,-500.0,0.00029273,5]
[343282918,1732540234865,-5212598.21586065,0.00029283,10]
[343282919,1732540234916,-37973.17678845,0.00029283,10]